fUSD/lending_fUSD_20250217
["ID","MTS","AMOUNT","RATE_DAILY","PERIOD"]
[353362826,1739796650703,-1922.63,0.00013698,2]
[353362827,1739796650713,-2560.52,0.00013698,2]
[353362828,1739796650722,-500.0,0.00013698,2]
[353362829,1739796650732,-1761.94,0.00013698,2]
[353362830,1739796650742,-702.22,0.00013698,2]
[353362831,1739796650752,-873.36,0.00013698,2]
[353362832,1739796650762,-500.0,0.00013698,2]
[353362833,1739796650771,-2470.68,0.00013698,2]
[353362834,1739796650780,-77.09034068,0.00013698,2]
[353362835,1739796650807,-422.90965932,0.00013698,2]
[353362836,1739796650816,-500.0,0.00013698,2]
[353362837,1739796650825,-2928.9710171,0.00013698,2]
[353362838,1739796650846,-6641.8789829,0.00013698,2]
[353362839,1739796650856,-500.0,0.00013698,2]
[353362840,1739796650865,-500.0,0.00013698,2]
[353362841,1739796650874,-2419.81,0.00013698,2]
[353362842,1739796650883,-1676.62,0.00013698,2]
[353362843,1739796650892,-500.0,0.00013698,2]
[353362844,1739796650901,-2665.97,0.00013698,2]
[353362845,1739796650910,-1664.92,0.00013698,2]
[353362846,1739796650919,-2790.33,0.00013698,2]
[353362847,1739796650929,-500.0,0.00013698,2]
[353362848,1739796650938,-631.32,0.00013698,2]
[353362849,1739796650947,-1115.65,0.00013698,2]
[353362850,1739796650956,-500.0,0.00013698,2]
[353362851,1739796650966,-500.0,0.00013698,2]
[353362852,1739796650975,-1799.69,0.00013698,2]
[353362853,1739796650984,-500.0,0.00013698,2]
[353362854,1739796650993,-2278.66,0.00013698,2]
[353362855,1739796651002,-2507.28,0.00013698,2]
[353362856,1739796651011,-592.49,0.00013698,2]
[353362857,1739796651021,-803.35,0.00013698,2]
[353362858,1739796651030,-2442.36,0.00013698,2]
[353362859,1739796651039,-500.0,0.00013698,2]
[353362860,1739796651048,-500.0,0.00013698,2]
[353362861,1739796651057,-1449.18,0.00013698,2]
[353362862,1739796651067,-500.0,0.00013698,2]
[353362863,1739796651078,-510.6129334,0.00013698,2]
[353362864,1739796651087,-500.0,0.00013698,2]
[353362865,1739796651096,-500.0,0.00013698,2]
[353362866,1739796651105,-500.0,0.00013698,2]
[353362867,1739796651115,-2299.58,0.00013698,2]
[353362868,1739796651125,-1619.36,0.00013698,2]
[353362869,1739796651136,-2161.45,0.00013698,2]
[353362870,1739796651147,-500.0,0.00013698,2]
[353362871,1739796651157,-612.76,0.00013698,2]
[353362872,1739796651168,-500.0,0.00013698,2]
[353362873,1739796651177,-500.0,0.00013698,2]
[353362874,1739796651187,-1228.92,0.00013698,2]
[353362875,1739796651196,-3270.45,0.00013698,2]
[353362876,1739796651205,-788.99,0.00013698,2]
[353362877,1739796651214,-2615.0,0.00013698,2]
[353362878,1739796651223,-500.0,0.00013698,2]
[353362879,1739796651233,-500.0,0.00013698,2]
[353362880,1739796651242,-500.0,0.00013698,2]
[353362881,1739796651251,-506.58004589,0.00013698,2]
[353362882,1739796651260,-2590.18803781,0.00013698,2]
[353362883,1739796651294,-435.38196219,0.00013698,2]
[353362884,1739796651305,-500.0,0.00013698,2]
[353362885,1739796651315,-1664.06303281,0.00013698,2]
[353362886,1739796651782,-1340.95642857,0.00011391,2]
[353362887,1739796651793,-309.415,0.00011391,2]
[353362888,1739796651836,-2112.5535243,0.00011391,2]
[353362889,1739796651847,-2132.98696719,0.00013698,2]
[353362890,1739796651856,-500.0,0.00013698,2]
[353362891,1739796651866,-188.15950851,0.00013698,2]
[353362892,1739796651879,-1157.04646338,0.00013698,2]
[353362893,1739796651891,-1133.41402811,0.00013698,2]
[353362894,1739796651900,-139.16806388,0.00013698,2]
[353362895,1739796651912,-360.83193612,0.00013698,2]
[353362896,1739796651922,-500.0,0.00013698,2]
[353362897,1739796651932,-2084.19,0.00013698,2]
[353362898,1739796651942,-500.0,0.00013698,2]
[353362899,1739796651952,-500.0,0.00013698,2]
[353362900,1739796651962,-2816.48,0.00013698,2]
[353362901,1739796651971,-500.0,0.00013698,2]
[353362902,1739796651981,-1526.93,0.00013698,2]
[353362903,1739796651990,-500.0,0.00013698,2]
[353362904,1739796651999,-504.15202984,0.00013698,2]
[353362905,1739796652010,-582.17,0.00013698,2]
[353362906,1739796652020,-500.0,0.00013698,2]
[353362907,1739796652031,-500.0,0.00013698,2]
[353362908,1739796652042,-1376.86,0.00013698,2]
[353362909,1739796652051,-500.0,0.00013698,2]
[353362910,1739796652060,-805.17,0.00013698,2]
[353362911,1739796652070,-576.79621403,0.00013698,2]
[353362912,1739796652079,-805.17,0.00013698,2]
[353362913,1739796652089,-1581.72,0.00013698,2]
[353362914,1739796652099,-805.17,0.00013698,2]
[353362915,1739796652300,-805.17,0.00013698,2]
[353362916,1739796652314,-757.71,0.00013698,2]
[353362917,1739796652324,-805.17,0.00013698,2]
[353362918,1739796652334,-500.0,0.00013698,2]
[353362919,1739796652344,-500.0,0.00013698,2]
[353362920,1739796652353,-805.17,0.00013698,2]
[353362921,1739796652363,-805.17,0.00013698,2]
[353362922,1739796652372,-805.17,0.00013698,2]
[353362923,1739796652382,-805.17,0.00013698,2]
[353362924,1739796652393,-500.0,0.00013698,2]
[353362925,1739796652404,-805.17,0.00013698,2]
[353362926,1739796652414,-500.0,0.00013698,2]
[353362927,1739796652424,-500.0,0.00013698,2]
[353362928,1739796652436,-507.90733075,0.00013698,2]
[353362929,1739796652447,-500.0,0.00013698,2]
[353362930,1739796652456,-2808.13,0.00013698,2]
[353362931,1739796652466,-500.0,0.00013698,2]
[353362932,1739796652476,-500.0,0.00013698,2]
[353362933,1739796652485,-504.13699974,0.00013698,2]
[353362934,1739796652494,-680.14,0.00013698,2]
[353362935,1739796652504,-6414.69681952,0.00013698,2]
[353362936,1739796745239,1627.0655,8.256e-05,2]
[353362937,1739796748194,1227.8648,8.699e-05,2]
[353362938,1739796785059,202.0,8.699e-05,3]
[353362939,1739797209395,-1658.1414022,0.00020127,120]
[353362940,1739797209416,-423.0,0.00020128,120]
[353362941,1739797209439,-2000.0,0.00020137,120]
[353362942,1739797209464,-2000.0,0.00020137,120]
[353362943,1739797209490,-2000.0,0.00020137,120]
[353362944,1739797209516,-2000.0,0.00020137,120]
[353362945,1739797209539,-2000.0,0.00020137,120]
[353362946,1739797209563,-2000.0,0.00020137,120]
[353362947,1739797209585,-2000.0,0.00020137,120]
[353362948,1739797209608,-2000.0,0.00020137,120]
[353362949,1739797209629,-2000.0,0.00020137,120]
[353362950,1739797209652,-2000.0,0.00020137,120]
[353362951,1739797209674,-2000.0,0.00020137,120]
[353362952,1739797209696,-2000.0,0.00020137,120]
[353362953,1739797209719,-2000.0,0.00020137,120]
[353362954,1739797209742,-2000.0,0.00020137,120]
[353362955,1739797209765,-2000.0,0.00020137,120]
[353362956,1739797209788,-2000.0,0.00020137,120]
[353362957,1739797209812,-2000.0,0.00020137,120]
[353362958,1739797209835,-2000.0,0.00020137,120]
[353362959,1739797209859,-2000.0,0.00020137,120]
[353362960,1739797209885,-2000.0,0.00020137,120]
[353362961,1739797209907,-559.0,0.0002014,120]
[353362962,1739797209929,-10000.0,0.00020152,120]
[353362963,1739797209953,-262.12,0.00020152,120]
[353362964,1739797209990,-2000.0,0.000203,120]
[353362965,1739797210013,-293.5559,0.00020352,120]
[353362966,1739797210034,-2581.57129708,0.00020375,120]
[353362967,1739797210056,-381.64542777,0.000204,120]
[353362968,1739797210081,-562.15688721,0.0002063,120]
[353362969,1739797210105,-200.0,0.0002066,120]
[353362970,1739797210129,-1078.80908574,0.0002068,120]
[353363136,1739797831748,-262.014,8.836e-05,2]
[353363137,1739797831759,-550.0,0.0001,2]
[353363138,1739797831770,-254.54,0.00010137,2]
[353363139,1739797831780,-158.33,0.00010151,2]
[353363140,1739797831791,-105.966,0.00010426,2]
[353363141,1739797831804,-511.47279877,0.00010426,2]
[353363142,1739797831814,-901.51,0.0001077,2]
[353363144,1739797831824,-500.0,0.00011154,2]
[353363146,1739797831833,-600.0,0.00011154,2]
[353363148,1739797831843,-600.0,0.00011154,2]
[353363150,1739797831853,-600.0,0.00012,2]
[353363152,1739797831881,-501.43,0.00012049,2]
[353363154,1739797831891,-150.0,0.00012114,2]
[353363156,1739797831901,-150.0,0.0001235,2]
[353363158,1739797831912,-406.86365345,0.00012364,2]
[353363160,1739797831922,-300.0,0.00012499,2]
[353363162,1739797831932,-150.0,0.00012501,2]
[353363164,1739797831942,-150.0,0.00012501,2]
[353363166,1739797831952,-600.0,0.00012524,2]
[353363168,1739797831963,-600.0,0.00012524,2]
[353363170,1739797831972,-218.73,0.00012591,2]
[353363172,1739797831981,-440.05,0.0001267,2]
[353363174,1739797831991,-5040.04207231,0.00012688,2]
[353363243,1739797837406,-528.1123,8.851e-05,2]
[353363244,1739797837417,-890.87167657,0.00012688,2]
[353363245,1739797837572,-483.91165012,0.00012688,2]
[353363246,1739797837709,-11164.274601,0.00012688,2]
[353363247,1739797837718,-1000.0,0.00012688,2]
[353363248,1739797837727,-250.0,0.00012688,2]
[353363249,1739797837737,-179.67,0.00012688,2]
[353363250,1739797837746,-439.7,0.00012714,2]
[353363251,1739797837756,-302.46,0.00012778,2]
[353363252,1739797837766,-1588.09044325,0.00012932,2]
[353363253,1739797837776,-150.0,0.00012959,2]
[353363254,1739797837786,-945.7,0.00012999,2]
[353363255,1739797837795,-8582.64,0.00013,3]
[353363256,1739797837804,-901.51,0.00013034,2]
[353363257,1739797837813,-150.48,0.00013041,2]
[353363258,1739797837823,-255.83,0.00013045,2]
[353363259,1739797837832,-300.0,0.00013078,2]
[353363260,1739797837841,-150.0,0.00013123,2]
[353363261,1739797837850,-400.0,0.000133,4]
[353363262,1739797837860,-800.0,0.000134,4]
[353363263,1739797837869,-2026.0,0.00013446,2]
[353363264,1739797837879,-150.0,0.00013446,2]
[353363265,1739797837888,-685.61,0.00013498,2]
[353363266,1739797837897,-263.71,0.00013498,2]
[353363267,1739797837907,-980.56,0.00013498,2]
[353363268,1739797837916,-878.1,0.00013498,2]
[353363269,1739797837925,-188.78604695,0.00013498,2]
[353363305,1739797839524,-797.92395305,0.00013498,2]
[353363307,1739797839534,-986.71,0.00013498,2]
[353363309,1739797839543,-986.71,0.00013498,2]
[353363311,1739797839553,-3.22517347,0.00013498,2]
[353363320,1739797839637,-983.48482653,0.00013498,2]
[353363322,1739797839647,-1200.0,0.000135,4]
[353363324,1739797839657,-985.01,0.00013508,2]
[353363326,1739797839667,-7.20226402,0.00013559,2]
[353363330,1739797839699,-408.42622138,0.00013559,2]
[353363332,1739797839709,-5732.34541143,0.00013563,2]
[353363334,1739797839719,-6027.48672527,0.0001357,2]
[353363336,1739797839728,-1629.93773435,0.00013598,2]
[353363339,1739797839867,-585.50720326,0.00013598,2]
[353363340,1739797839879,-583.45659375,0.00013598,2]
[353363341,1739797839889,-162.35220445,0.00013598,2]
[353363342,1739797839899,-117.62519653,0.00013598,2]
[353363343,1739797839923,-204.00761842,0.00013598,2]
[353363344,1739797839932,-943.6410597,0.00013598,2]
[353363345,1739797839942,-1512.811,0.000136,2]
[353363346,1739797839952,-2336.380485,0.000136,2]
[353363347,1739797839962,-725.69197105,0.000136,4]
[353363381,1739797842587,-874.30802895,0.000136,4]
[353363383,1739797842597,-53.35141105,0.00013634,2]
[353363385,1739797842608,-2745.5501203,0.00013634,2]
[353363387,1739797842617,-943.64105968,0.00013639,2]
[353363389,1739797842626,-365.50771563,0.00013642,2]
[353363391,1739797842635,-1000.0,0.00013667,2]
[353363392,1739797842644,-2798.90153135,0.0001367,2]
[353363394,1739797842654,-583.18019151,0.0001368,2]
[353363396,1739797842663,-943.64105968,0.0001368,2]
[353363398,1739797842674,-494.45,0.00013698,2]
[353363400,1739797842688,-500.0,0.00013698,2]
[353363402,1739797842697,-500.0,0.00013698,2]
[353363404,1739797842706,-500.0,0.00013698,2]
[353363406,1739797842716,-500.0,0.00013698,2]
[353363408,1739797842725,-503.71701546,0.00013698,2]
[353363410,1739797842734,-500.0,0.00013698,2]
[353363411,1739797842743,-501.90085122,0.00013698,2]
[353363412,1739797842753,-501.99940663,0.00013698,2]
[353363414,1739797842764,-504.5641805,0.00013698,2]
[353363415,1739797842773,-325.09192853,0.00013698,2]
[353363417,1739797842782,-501.87522391,0.00013698,2]
[353363419,1739797842791,-500.0,0.00013698,2]
[353363421,1739797842800,-500.0,0.00013698,2]
[353363423,1739797842809,-500.0,0.00013698,2]
[353363425,1739797842819,-509.52390184,0.00013698,2]
[353363427,1739797842829,-500.0,0.00013698,2]
[353363429,1739797842839,-503.82322878,0.00013698,2]
[353363431,1739797842850,-599.98096343,0.00013698,2]
[353363433,1739797842859,-156.366715,0.00013698,2]
[353363435,1739797842869,-500.0,0.00013698,2]
[353363437,1739797842878,-152.929376,0.00013698,2]
[353363439,1739797842888,-153.948696,0.00013698,2]
[353363441,1739797842897,-500.0,0.00013698,2]
[353363443,1739797842906,-500.0,0.00013698,2]
[353363445,1739797842915,-296.39442293,0.00013698,2]
[353363447,1739797842925,-502.00482307,0.00013698,2]
[353363448,1739797842934,-212.73284906,0.00013698,2]
[353363449,1739797842943,-500.0,0.00013698,2]
[353363450,1739797842952,-500.38925308,0.00013698,2]
[353363451,1739797842961,-500.0,0.00013698,2]
[353363452,1739797842970,-1170.0,0.00013698,3]
[353363453,1739797842979,-500.0,0.00013698,2]
[353363454,1739797842989,-500.0,0.00013698,2]
[353363455,1739797842997,-510.55814512,0.00013698,2]
[353363456,1739797843006,-500.0,0.00013698,2]
[353363457,1739797843015,-500.0,0.00013698,2]
[353363458,1739797843025,-500.0,0.00013698,2]
[353363459,1739797843034,-500.0,0.00013698,2]
[353363460,1739797843043,-220.93389109,0.00013698,2]
[353363461,1739797843053,-500.0,0.00013698,2]
[353363462,1739797843063,-176.99065412,0.00013698,2]
[353363463,1739797843072,-762.62,0.00013698,2]
[353363464,1739797843082,-500.0,0.00013698,2]
[353363466,1739797843091,-698.57,0.00013698,2]
[353363467,1739797843100,-500.0,0.00013698,2]
[353363468,1739797843110,-501.85674177,0.00013698,2]
[353363469,1739797843119,-500.0,0.00013698,2]
[353363470,1739797843128,-500.0,0.00013698,2]
[353363471,1739797843139,-500.0,0.00013698,2]
[353363472,1739797843148,-500.0,0.00013698,2]
[353363473,1739797843157,-500.0,0.00013698,2]
[353363474,1739797843166,-500.0,0.00013698,2]
[353363475,1739797843176,-507.88462139,0.00013698,2]
[353363476,1739797843185,-500.0,0.00013698,2]
[353363477,1739797843195,-500.0,0.00013698,2]
[353363478,1739797843205,-500.0,0.00013698,2]
[353363479,1739797843216,-500.0,0.00013698,2]
[353363480,1739797843225,-500.0,0.00013698,2]
[353363481,1739797843235,-500.0,0.00013698,2]
[353363482,1739797843246,-500.0,0.00013698,2]
[353363483,1739797843256,-500.0,0.00013698,2]
[353363484,1739797843268,-500.0,0.00013698,2]
[353363485,1739797843277,-500.0,0.00013698,2]
[353363486,1739797843287,-500.0,0.00013698,2]
[353363487,1739797843297,-501.63490567,0.00013698,2]
[353363488,1739797843306,-500.0,0.00013698,2]
[353363489,1739797843316,-500.0,0.00013698,2]
[353363490,1739797843325,-500.0,0.00013698,2]
[353363491,1739797843335,-501.13266839,0.00013698,2]
[353363492,1739797843345,-500.0,0.00013698,2]
[353363493,1739797843354,-500.0,0.00013698,2]
[353363494,1739797843364,-500.0,0.00013698,2]
[353363495,1739797843373,-500.0,0.00013698,2]
[353363496,1739797843383,-500.0,0.00013698,2]
[353363497,1739797843392,-500.0,0.00013698,2]
[353363498,1739797843401,-195.36017123,0.00013698,2]
[353363499,1739797843411,-500.0,0.00013698,2]
[353363500,1739797843420,-500.0,0.00013698,2]
[353363501,1739797843430,-523.69457922,0.00013698,2]
[353363502,1739797843439,-500.0,0.00013698,2]
[353363503,1739797843449,-500.0,0.00013698,2]
[353363504,1739797843460,-624.86623327,0.00013698,2]
[353363505,1739797843469,-528.71434032,0.00013698,2]
[353363506,1739797843478,-599.22,0.00013698,2]
[353363507,1739797843487,-586.3,0.00013698,2]
[353363508,1739797843497,-500.0,0.00013698,2]
[353363509,1739797843506,-500.0,0.00013698,2]
[353363510,1739797843515,-500.0,0.00013698,2]
[353363511,1739797843525,-500.0,0.00013698,2]
[353363512,1739797843534,-500.0,0.00013698,2]
[353363513,1739797843544,-501.19447747,0.00013698,2]
[353363514,1739797843554,-500.0,0.00013698,2]
[353363515,1739797843562,-501.16947458,0.00013698,2]
[353363516,1739797843817,-500.0,0.00013698,2]
[353363517,1739797843827,-501.16456505,0.00013698,2]
[353363518,1739797843836,-500.0,0.00013698,2]
[353363519,1739797843846,-500.0,0.00013698,2]
[353363520,1739797843855,-588.25,0.00013698,2]
[353363521,1739797843864,-500.0,0.00013698,2]
[353363522,1739797843873,-833.3,0.00013698,2]
[353363523,1739797843883,-331.57464305,0.00013698,2]
[353363524,1739797843892,-500.0,0.00013698,2]
[353363525,1739797843901,-500.0,0.00013698,2]
[353363526,1739797843910,-500.0,0.00013698,2]
[353363527,1739797843919,-1171.869307,0.00013698,2]
[353363528,1739797843929,-500.0,0.00013698,2]
[353363529,1739797843938,-843.87,0.00013698,2]
[353363530,1739797843948,-500.0,0.00013698,2]
[353363531,1739797843957,-978.94,0.00013698,2]
[353363532,1739797843966,-413.600932,0.00013698,2]
[353363533,1739797843977,-1261.29,0.00013698,2]
[353363534,1739797843986,-501.85053561,0.00013698,2]
[353363535,1739797843996,-500.0,0.00013698,2]
[353363536,1739797844007,-500.0,0.00013698,2]
[353363537,1739797844017,-659.35,0.00013698,2]
[353363538,1739797844026,-1083.0,0.00013698,2]
[353363539,1739797844036,-500.0,0.00013698,2]
[353363540,1739797844046,-500.0,0.00013698,2]
[353363541,1739797844055,-500.0,0.00013698,2]
[353363542,1739797844065,-500.0,0.00013698,2]
[353363543,1739797844074,-500.0,0.00013698,2]
[353363544,1739797844084,-500.0,0.00013698,2]
[353363545,1739797844094,-500.0,0.00013698,2]
[353363546,1739797844103,-500.0,0.00013698,2]
[353363547,1739797844113,-500.0,0.00013698,2]
[353363548,1739797844122,-500.0,0.00013698,2]
[353363549,1739797844131,-205.76268518,0.00013698,2]
[353363550,1739797844141,-501.47094092,0.00013698,2]
[353363551,1739797844150,-1684.8,0.00013698,2]
[353363552,1739797844159,-1495.7,0.00013698,2]
[353363553,1739797844168,-500.0,0.00013698,2]
[353363554,1739797844178,-939.7,0.00013698,2]
[353363555,1739797844187,-595.98482865,0.00013698,2]
[353363556,1739797844196,-500.0,0.00013698,2]
[353363557,1739797844206,-500.0,0.00013698,2]
[353363558,1739797844215,-500.0,0.00013698,2]
[353363559,1739797844224,-500.0,0.00013698,2]
[353363560,1739797844233,-500.0,0.00013698,2]
[353363561,1739797844242,-500.0,0.00013698,2]
[353363562,1739797844251,-500.0,0.00013698,2]
[353363563,1739797844261,-500.0,0.00013698,2]
[353363564,1739797844270,-812.96,0.00013698,2]
[353363565,1739797844279,-500.0,0.00013698,2]
[353363566,1739797844288,-500.0,0.00013698,2]
[353363567,1739797844297,-500.0,0.00013698,2]
[353363568,1739797844308,-807.57,0.00013698,2]
[353363569,1739797844318,-987.68,0.00013698,2]
[353363570,1739797844327,-500.0,0.00013698,2]
[353363571,1739797844336,-1376.39,0.00013698,2]
[353363572,1739797844345,-500.0,0.00013698,2]
[353363573,1739797844355,-500.0,0.00013698,2]
[353363574,1739797844364,-158.32754656,0.00013698,2]
[353363575,1739797844373,-500.0,0.00013698,2]
[353363576,1739797844382,-1458.685599,0.00013698,2]
[353363577,1739797844392,-500.0,0.00013698,2]
[353363578,1739797844401,-687.89,0.00013698,2]
[353363579,1739797844411,-500.0,0.00013698,2]
[353363580,1739797844421,-500.0,0.00013698,2]
[353363581,1739797844430,-1393.32,0.00013698,2]
[353363582,1739797844439,-500.0,0.00013698,2]
[353363583,1739797844448,-500.0,0.00013698,2]
[353363584,1739797844458,-500.0,0.00013698,2]
[353363585,1739797844468,-500.0,0.00013698,2]
[353363586,1739797844478,-500.0,0.00013698,2]
[353363587,1739797844487,-500.0,0.00013698,2]
[353363588,1739797844496,-500.0,0.00013698,2]
[353363589,1739797844505,-500.0,0.00013698,2]
[353363590,1739797844515,-971.21,0.00013698,2]
[353363591,1739797844526,-1267.2,0.00013698,2]
[353363592,1739797844536,-500.0,0.00013698,2]
[353363593,1739797844545,-500.0,0.00013698,2]
[353363594,1739797844554,-500.0,0.00013698,2]
[353363595,1739797844563,-500.0,0.00013698,2]
[353363596,1739797844572,-500.0,0.00013698,2]
[353363597,1739797844582,-315.13721711,0.00013698,7]
[353363598,1739797844591,-503.12081949,0.00013698,2]
[353363599,1739797844602,-796.26,0.00013698,2]
[353363600,1739797844611,-500.0,0.00013698,2]
[353363601,1739797844620,-500.0,0.00013698,2]
[353363602,1739797844630,-500.0,0.00013698,2]
[353363603,1739797844640,-500.0,0.00013698,2]
[353363604,1739797844650,-500.0,0.00013698,2]
[353363605,1739797844660,-356.16,0.00013698,2]
[353363606,1739797844670,-500.0,0.00013698,2]
[353363607,1739797844682,-500.0,0.00013698,2]
[353363608,1739797844691,-500.0,0.00013698,2]
[353363609,1739797844700,-500.0,0.00013698,2]
[353363610,1739797844710,-1525.71,0.00013698,2]
[353363611,1739797844719,-878.59,0.00013698,2]
[353363612,1739797844728,-500.0,0.00013698,2]
[353363613,1739797844738,-509.33925984,0.00013698,2]
[353363614,1739797844747,-500.0,0.00013698,2]
[353363615,1739797844758,-500.0,0.00013698,2]
[353363616,1739797844767,-500.0,0.00013698,2]
[353363617,1739797844778,-500.0,0.00013698,2]
[353363618,1739797844787,-503.210975,0.00013698,2]
[353363619,1739797844796,-500.0,0.00013698,2]
[353363620,1739797844805,-770.55,0.00013698,2]
[353363622,1739797844814,-1450.28,0.00013698,2]
[353363624,1739797844824,-500.0,0.00013698,2]
[353363626,1739797844834,-644.13,0.00013698,2]
[353363628,1739797844844,-500.0,0.00013698,2]
[353363630,1739797844854,-500.0,0.00013698,2]
[353363632,1739797844863,-500.0,0.00013698,2]
[353363634,1739797844873,-238.71193979,0.00013698,2]
[353363636,1739797844883,-1054.45,0.00013698,2]
[353363638,1739797844892,-340.53906757,0.00013698,2]
[353363640,1739797844901,-500.0,0.00013698,2]
[353363642,1739797844910,-500.0,0.00013698,2]
[353363644,1739797844919,-748.82,0.00013698,2]
[353363646,1739797844928,-783.99,0.00013698,2]
[353363648,1739797844937,-696.83,0.00013698,2]
[353363650,1739797844946,-1051.16,0.00013698,2]
[353363652,1739797844955,-964.03,0.00013698,2]
[353363654,1739797844964,-400.13508739,0.00013698,2]
[353363656,1739797844973,-500.0,0.00013698,2]
[353363658,1739797844984,-1353.43,0.00013698,2]
[353363660,1739797844993,-836.35,0.00013698,2]
[353363662,1739797845002,-1148.95,0.00013698,2]
[353363664,1739797845012,-500.0,0.00013698,2]
[353363666,1739797845021,-500.0,0.00013698,2]
[353363668,1739797845030,-500.0,0.00013698,2]
[353363670,1739797845039,-1089.51,0.00013698,2]
[353363672,1739797845048,-500.0,0.00013698,2]
[353363674,1739797845057,-950.76,0.00013698,2]
[353363676,1739797845066,-500.0,0.00013698,2]
[353363678,1739797845075,-545.17667688,0.00013698,2]
[353363680,1739797845085,-500.0,0.00013698,2]
[353363682,1739797845094,-500.0,0.00013698,2]
[353363684,1739797845103,-1345.41,0.00013698,2]
[353363686,1739797845113,-722.69,0.00013698,2]
[353363688,1739797845122,-829.65,0.00013698,2]
[353363690,1739797845131,-500.0,0.00013698,2]
[353363692,1739797845141,-8.05179142,0.00013698,2]
[353363696,1739797845166,-491.94820858,0.00013698,2]
[353363698,1739797845175,-710.49,0.00013698,2]
[353363700,1739797845185,-500.0,0.00013698,2]
[353363702,1739797845194,-500.0,0.00013698,2]
[353363704,1739797845203,-704.32,0.00013698,2]
[353363706,1739797845212,-500.0,0.00013698,2]
[353363708,1739797845220,-500.0,0.00013698,2]
[353363710,1739797845230,-500.0,0.00013698,2]
[353363712,1739797845238,-724.15,0.00013698,2]
[353363713,1739797845249,-210.70683573,0.00013698,2]
[353363714,1739797845257,-500.0,0.00013698,2]
[353363715,1739797845266,-507.36,0.00013698,2]
[353363716,1739797845275,-542.67,0.00013698,2]
[353363717,1739797845284,-500.0,0.00013698,2]
[353363718,1739797845293,-500.0,0.00013698,2]
[353363719,1739797845302,-16.49554657,0.00013698,2]
[353363720,1739797845314,-370.13638,0.00013698,2]
[353363723,1739797845331,-373.79807343,0.00013698,2]
[353363724,1739797845340,-500.0,0.00013698,2]
[353363725,1739797845350,-500.0,0.00013698,2]
[353363726,1739797845359,-500.0,0.00013698,2]
[353363727,1739797845368,-500.0,0.00013698,2]
[353363728,1739797845378,-500.0,0.00013698,2]
[353363729,1739797845387,-1055.44,0.00013698,2]
[353363730,1739797845396,-3.34189016,0.00013698,2]
[353363731,1739797845426,-319.90077918,0.00013698,2]
[353363732,1739797845443,-176.75733066,0.00013698,2]
[353363733,1739797845452,-595.87,0.00013698,2]
[353363734,1739797845461,-737.31,0.00013698,2]
[353363735,1739797845471,-500.0,0.00013698,2]
[353363736,1739797845480,-500.0,0.00013698,2]
[353363737,1739797845489,-500.0,0.00013698,2]
[353363738,1739797845498,-500.0,0.00013698,2]
[353363739,1739797845508,-500.0,0.00013698,2]
[353363740,1739797845517,-518.34663018,0.00013698,2]
[353363741,1739797845526,-974.6,0.00013698,2]
[353363742,1739797845535,-500.0,0.00013698,2]
[353363743,1739797845545,-500.0,0.00013698,2]
[353363744,1739797845554,-500.0,0.00013698,2]
[353363745,1739797845564,-500.0,0.00013698,2]